bitfinex/quotes_BTCUSD_20251007
["timestamp","ask_amount","ask_price","bid_price","bid_amount"]
[1759871523424,0.16361256,122240.0,122230.0,0.16841792]
[1759871523626,0.16362595,122230.0,122220.0,0.05877111]
[1759871523807,0.69740619,122230.0,122220.0,0.05877111]
[1759871524061,0.69740619,122230.0,122220.0,0.23108]
[1759871524498,0.21489595,122230.0,122220.0,0.23108]
[1759871524712,0.69740619,122230.0,122220.0,0.23108]
[1759871525854,0.69740619,122230.0,122220.0,0.002]
[1759871526073,0.69740619,122230.0,122220.0,0.23308]
[1759871526297,0.69740619,122230.0,122220.0,0.23408]
[1759871526759,0.69740619,122230.0,122220.0,0.23358]
[1759871527178,0.68763229,122230.0,122220.0,0.24967]
[1759871527553,0.20502595,122230.0,122220.0,0.24967]
[1759871528068,0.18014595,122230.0,122220.0,0.24967]
[1759871528506,0.16362595,122230.0,122220.0,0.24967]
[1759871528662,0.16362595,122230.0,122220.0,0.28227]
[1759871529100,0.18014595,122230.0,122220.0,0.27325]
[1759871529329,0.18065528,122230.0,122220.0,0.27325]
[1759871529548,0.18065528,122230.0,122220.0,0.35833]
[1759871535531,0.16413528,122230.0,122220.0,0.52196933]
[1759871535732,0.16413528,122230.0,122220.0,0.53098933]
[1759871543261,0.16413528,122230.0,122220.0,0.5272213]
[1759871543553,0.00050933,122230.0,122220.0,1.1024497]
[1759871544687,0.00050933,122230.0,122220.0,0.61984336]
[1759871545738,0.00050933,122230.0,122220.0,1.1024497]
[1759871546391,0.00050933,122230.0,122220.0,1.1116197]
[1759871546801,0.00050933,122230.0,122220.0,1.4516197]
[1759871547172,0.00050933,122230.0,122220.0,1.47618776]
[1759871548876,0.00050933,122230.0,122220.0,1.53495887]
[1759871549861,0.00050933,122230.0,122220.0,1.56511077]
[1759871551739,0.00050933,122230.0,122220.0,1.24895077]
[1759871551902,0.00050933,122230.0,122220.0,1.56476765]
[1759871552276,0.00050933,122230.0,122220.0,1.24860765]
[1759871552690,0.00050933,122230.0,122220.0,1.56476765]
[1759871555386,0.16413528,122230.0,122220.0,0.72667941]
[1759871555607,0.69544162,122230.0,122220.0,0.16820206]
[1759871555852,0.21283528,122230.0,122220.0,0.39928206]
[1759871556266,0.21283528,122230.0,122220.0,0.41498206]
[1759871556489,0.20548528,122230.0,122220.0,0.41498206]
[1759871556730,0.18231528,122230.0,122220.0,0.09882206]
[1759871556821,0.16363933,122220.0,122210.0,0.19850516]
[1759871557024,0.16363933,122220.0,122210.0,0.61348722]
[1759871557435,0.16363933,122220.0,122210.0,0.61298722]
[1759871557860,0.16463933,122220.0,122210.0,0.61298722]
[1759871558293,0.16463933,122220.0,122210.0,0.29682722]
[1759871558467,0.16463933,122220.0,122210.0,0.61298722]
[1759871560774,0.001,122220.0,122210.0,1.09559356]
[1759871561000,0.001,122220.0,122210.0,1.10488356]
[1759871562786,0.16463933,122220.0,122210.0,0.78872356]
[1759871562978,0.16463933,122220.0,122210.0,1.10488356]
[1759871566829,0.001,122220.0,122210.0,1.10488356]
[1759871567436,0.16463933,122220.0,122210.0,1.10488356]
[1759871569474,0.16463933,122220.0,122210.0,1.10549356]
[1759871574605,0.001,122220.0,122210.0,1.10549356]
[1759871574828,0.001,122220.0,122210.0,1.11530356]
[1759871575853,0.001,122220.0,122210.0,1.21337657]
[1759871576436,0.001,122220.0,122210.0,1.55337657]
[1759871576871,0.001,122220.0,122210.0,1.55637657]
[1759871577277,0.00050933,122230.0,122220.0,0.16363933]
[1759871577496,0.00050933,122230.0,122220.0,1.31427518]
[1759871577705,0.00050933,122230.0,122220.0,1.33921518]
[1759871578103,0.00050933,122230.0,122220.0,0.85660884]
[1759871578487,0.00150933,122230.0,122220.0,0.85660884]
[1759871580238,0.00150933,122230.0,122220.0,0.9183601]
[1759871588890,0.00150933,122230.0,122220.0,1.40096644]
[1759871589099,0.00150933,122230.0,122220.0,2.26175859]
[1759871589304,0.00150933,122230.0,122220.0,1.70179317]
[1759871589574,0.00150933,122230.0,122220.0,2.10126037]
[1759871589764,0.00150933,122230.0,122220.0,2.04654108]
[1759871589980,0.18076528,122230.0,122220.0,0.3206312]
[1759871590184,0.69613959,122230.0,122220.0,0.45802187]
[1759871590422,0.69613959,122230.0,122220.0,0.56292139]
[1759871590634,0.69613959,122230.0,122220.0,0.39928206]
[1759871590856,0.21390528,122230.0,122220.0,0.56292139]
[1759871591074,0.69613959,122230.0,122220.0,0.39928206]
[1759871591292,0.16363933,122220.0,122210.0,0.00035327]
[1759871591515,0.64587364,122220.0,122210.0,0.08347533]
[1759871591738,0.66150364,122220.0,122210.0,0.31459533]
[1759871591947,0.21240933,122220.0,122210.0,0.31459533]
[1759871592154,0.69464364,122220.0,122210.0,0.31459533]
[1759871592350,0.21240933,122220.0,122210.0,0.31459533]
[1759871592541,0.69464364,122220.0,122210.0,0.31459533]
[1759871593255,0.69464364,122220.0,122210.0,0.31759533]
[1759871593506,0.16414288,122230.0,122210.0,0.49337805]
[1759871593723,0.16363933,122220.0,122210.0,0.61584964]
[1759871593933,0.17926933,122220.0,122210.0,0.12382533]
[1759871594163,0.17926933,122220.0,122210.0,0.09860533]
[1759871594351,0.69464364,122220.0,122210.0,0.00035327]
[1759871594576,0.21340933,122220.0,122210.0,0.23143327]
[1759871594830,0.69564364,122220.0,122210.0,0.23143327]
[1759871595012,0.69464364,122220.0,122210.0,0.23143327]
[1759871596298,0.69864364,122220.0,122210.0,0.23143327]
[1759871596447,0.70704777,122220.0,122210.0,0.00035327]
[1759871596648,0.70704777,122220.0,122210.0,0.23147327]
[1759871596871,0.70704777,122220.0,122210.0,0.00035327]
[1759871597078,0.69864364,122220.0,122210.0,0.23147327]
[1759871598350,0.69864364,122220.0,122210.0,0.00035327]
[1759871598531,0.69864364,122220.0,122210.0,0.23143327]
[1759871600166,0.21640933,122220.0,122210.0,0.23143327]
[1759871600332,0.69864364,122220.0,122210.0,0.23143327]
[1759871602374,0.69864364,122220.0,122210.0,0.00035327]
[1759871602618,0.69864364,122220.0,122210.0,0.23143327]
[1759871603151,0.18326933,122220.0,122210.0,0.20335599]
[1759871603366,0.16763933,122220.0,122210.0,0.9166703]
[1759871603564,0.18326933,122220.0,122210.0,0.01548327]
[1759871603786,0.70782364,122220.0,122210.0,0.00035327]
[1759871603991,0.70782364,122220.0,122210.0,0.23143327]
[1759871604522,0.69864364,122220.0,122210.0,0.23143327]
[1759871606119,0.68950364,122220.0,122210.0,0.24667327]
[1759871607202,1.27100475,122220.0,122210.0,0.00035327]
[1759871607438,0.70877364,122220.0,122210.0,0.23143327]
[1759871608203,0.16763933,122220.0,122210.0,0.76334758]
[1759871608420,0.16763933,122220.0,122210.0,0.9270003]
[1759871609845,0.004,122220.0,122210.0,1.01923236]
[1759871610374,0.004,122220.0,122210.0,0.53699805]
[1759871610581,0.004,122220.0,122210.0,1.01923236]
[1759871615808,0.004,122220.0,122210.0,0.78815236]
[1759871616026,0.004,122220.0,122210.0,1.01927236]
[1759871616573,0.004,122220.0,122210.0,1.01016236]
[1759871616966,0.18266933,122220.0,122210.0,0.81206964]
[1759871617171,0.18266933,122220.0,122210.0,0.97572236]
[1759871617570,0.16763933,122220.0,122210.0,1.00057236]
[1759871617881,0.16763933,122220.0,122210.0,1.01016236]
[1759871618309,0.16763933,122220.0,122210.0,0.29680805]
[1759871618453,0.16763933,122220.0,122210.0,0.26236805]
[1759871618454,0.18266933,122220.0,122210.0,0.26236805]
[1759871618670,0.18266933,122220.0,122210.0,0.49348805]
[1759871619448,0.16763933,122220.0,122210.0,0.52561805]
[1759871619681,0.16763933,122220.0,122210.0,0.51632805]
[1759871620374,0.18367933,122220.0,122210.0,0.49348805]
[1759871623160,0.18367933,122220.0,122210.0,0.51632805]
[1759871623463,0.18367933,122220.0,122210.0,0.28520805]
[1759871623673,0.21781933,122220.0,122210.0,0.49348805]
[1759871623891,0.18367933,122220.0,122210.0,0.49348805]
[1759871624813,0.18367933,122220.0,122210.0,0.26236805]
[1759871625029,0.18367933,122220.0,122210.0,0.49348805]
[1759871625228,0.18367933,122220.0,122210.0,0.26236805]
[1759871625460,0.18367933,122220.0,122210.0,0.49348805]
[1759871625669,0.18367933,122220.0,122210.0,0.51632805]
[1759871625856,0.16763933,122220.0,122210.0,0.51632805]
[1759871626069,0.16763933,122220.0,122210.0,0.52561805]
[1759871627035,0.16763933,122220.0,122210.0,0.29449805]
[1759871627213,0.16763933,122220.0,122210.0,0.51628805]
[1759871627675,0.16763933,122220.0,122210.0,0.35263533]
[1759871628200,0.16763933,122220.0,122210.0,0.51628805]
[1759871628646,0.16763933,122220.0,122210.0,0.99852236]
[1759871628833,0.16763933,122220.0,122210.0,1.00781236]
[1759871629754,0.16763933,122220.0,122210.0,0.52557805]
[1759871630048,0.16763933,122220.0,122210.0,1.00781236]
[1759871631549,0.16763933,122220.0,122210.0,0.52557805]
[1759871631789,0.16763933,122220.0,122210.0,0.12155533]
[1759871631933,0.16763933,122220.0,122210.0,0.51628805]
[1759871632147,0.18367933,122220.0,122210.0,0.49344805]
[1759871632349,0.16763933,122220.0,122210.0,0.51628805]
[1759871635371,0.18411933,122220.0,122210.0,0.32979533]
[1759871635572,0.18411933,122220.0,122210.0,0.49344805]
[1759871635717,0.18411933,122220.0,122210.0,0.51702805]
[1759871636127,0.16763933,122220.0,122210.0,0.51702805]
[1759871637029,0.16763933,122220.0,122210.0,0.35337533]
[1759871638127,0.18411933,122220.0,122210.0,0.12229533]
[1759871638355,0.18411933,122220.0,122210.0,0.32979533]
[1759871638543,0.18411933,122220.0,122210.0,0.09871533]
[1759871638752,0.18411933,122220.0,122210.0,0.32979533]
[1759871639879,0.66635364,122220.0,122210.0,0.01559327]
[1759871640080,0.70949364,122220.0,122210.0,0.23143327]
[1759871640319,1.19172795,122220.0,122210.0,0.00035327]
[1759871640527,1.19172795,122220.0,122210.0,0.23143327]
[1759871640968,1.18972795,122220.0,122210.0,0.23143327]
[1759871641191,0.70749364,122220.0,122210.0,0.23143327]
[1759871641405,1.64691475,122220.0,122210.0,0.00035327]
[1759871641646,2.56771112,122220.0,122210.0,0.00035327]
[1759871641909,2.48771432,122220.0,122210.0,0.00035327]
[1759871642137,2.60871432,122220.0,122210.0,0.00035327]
[1759871642387,2.86437522,122220.0,122210.0,0.00035327]
[1759871642601,2.86337522,122220.0,122210.0,0.00035327]
[1759871642855,2.86537522,122220.0,122210.0,0.00035327]
[1759871643055,2.94537202,122220.0,122210.0,0.00035327]
[1759871643268,2.87303152,122220.0,122210.0,0.00035327]
[1759871643724,2.86503152,122220.0,122210.0,0.00035327]
[1759871643949,2.92811128,122220.0,122210.0,0.00035327]
[1759871644164,2.99589014,122220.0,122210.0,0.00035327]
[1759871644354,2.9935535,122220.0,122210.0,0.00035327]
[1759871644564,3.01516766,122220.0,122210.0,0.00035327]
[1759871645005,3.01516766,122220.0,122150.0,0.26165751]
[1759871645006,0.1637192,122170.0,122150.0,0.26165751]
[1759871645210,0.21362971,122160.0,122150.0,0.15395503]
[1759871645436,0.21362971,122160.0,122150.0,0.06619503]
[1759871645639,0.21362971,122160.0,122150.0,0.31265503]
[1759871645855,0.21362971,122160.0,122150.0,0.24646]
[1759871646054,0.18019971,122160.0,122150.0,0.24846]
[1759871646294,0.18019971,122160.0,122150.0,0.41234403]
[1759871646727,0.18019971,122160.0,122150.0,0.01553092]
[1759871646937,0.69586402,122160.0,122150.0,0.23127092]
[1759871647326,0.69586402,122160.0,122150.0,0.24665092]
[1759871647625,0.66243402,122160.0,122150.0,0.25665092]
[1759871647829,0.18019971,122160.0,122150.0,0.27123092]
[1759871648050,0.69586402,122160.0,122150.0,0.23227092]
[1759871648298,0.69586402,122160.0,122150.0,0.23827092]
[1759871648727,0.69586402,122160.0,122150.0,0.23727092]
[1759871648948,0.69586402,122160.0,122150.0,0.00615092]
[1759871649157,0.21362971,122160.0,122150.0,0.23127092]
[1759871649371,0.21362971,122160.0,122150.0,0.23527092]
[1759871649555,0.20376971,122160.0,122150.0,0.41438403]
[1759871649791,0.21362971,122160.0,122150.0,0.39900403]
[1759871650004,0.18019971,122160.0,122150.0,0.18326403]
[1759871650231,1.43042763,122160.0,122150.0,0.00415092]
[1759871650453,1.11223867,122160.0,122150.0,0.00415092]
[1759871651055,1.59537763,122160.0,122150.0,0.00415092]
[1759871651469,1.59537763,122160.0,122150.0,0.00720913]
[1759871652140,1.59537763,122160.0,122150.0,0.00320913]
[1759871652141,1.11227867,122160.0,122150.0,0.00320913]
[1759871652329,1.11227867,122160.0,122150.0,0.00520913]
[1759871652989,1.11327867,122160.0,122150.0,0.00520913]
[1759871653649,0.62044971,122160.0,122150.0,0.00520913]
[1759871653862,1.10358867,122160.0,122150.0,0.00520913]
[1759871654075,0.87242867,122160.0,122150.0,0.00520913]
[1759871654366,1.10358867,122160.0,122150.0,0.00520913]
[1759871655226,1.60441763,122160.0,122150.0,0.00520913]
[1759871655421,2.10753649,122160.0,122150.0,0.00520913]
[1759871655676,2.03697969,122160.0,122150.0,0.00520913]
[1759871656299,1.83041401,122160.0,122150.0,0.00520913]
[1759871656526,2.14673401,122160.0,122150.0,0.00520913]
[1759871656738,1.83041401,122160.0,122150.0,0.00520913]
[1759871656885,1.91041081,122160.0,122150.0,0.00520913]
[1759871657058,2.34677081,122160.0,122150.0,0.00520913]
[1759871657874,2.34577081,122160.0,122150.0,0.00520913]
[1759871658179,2.34977081,122160.0,122150.0,0.00320913]
[1759871658415,2.35277081,122160.0,122150.0,0.00320913]
[1759871659053,2.03641081,122160.0,122150.0,0.00320913]
[1759871659241,2.35277081,122160.0,122150.0,0.00320913]
[1759871659437,2.03641081,122160.0,122150.0,0.00320913]
[1759871659648,2.27277401,122160.0,122150.0,0.00320913]
[1759871660089,2.32192401,122160.0,122150.0,0.00320913]
[1759871660296,2.27277401,122160.0,122150.0,0.00320913]
[1759871663155,2.80125105,122160.0,122150.0,0.00320913]
[1759871663372,2.39810889,122160.0,122150.0,0.00320913]
[1759871663580,2.40570251,122160.0,122150.0,0.00320913]
[1759871665090,2.88884147,122160.0,122150.0,1e-08]
[1759871665296,2.90634221,122160.0,122150.0,1e-08]
[1759871666974,2.89875659,122160.0,122150.0,1e-08]
[1759871667159,2.90635368,122160.0,122150.0,1e-08]
[1759871668228,3.00635366,122160.0,122150.0,1e-08]
[1759871668419,3.05549366,122160.0,122150.0,1e-08]
[1759871668635,3.08049365,122160.0,122150.0,1e-08]
[1759871668853,3.10255028,122160.0,122150.0,1e-08]
[1759871669524,3.10991702,122160.0,122150.0,1e-08]
[1759871669704,3.10191702,122160.0,122150.0,1e-08]
[1759871670138,3.45274028,122160.0,122150.0,1e-08]
[1759871670624,3.51753088,122160.0,122150.0,1e-08]
[1759871670876,3.48810751,122160.0,122150.0,1e-08]
[1759871671325,3.79981919,122160.0,122150.0,1e-08]
[1759871671547,4.13312361,122160.0,122150.0,0.00200001]
[1759871671742,4.17073145,122160.0,122150.0,1e-08]
[1759871671913,4.08553145,122160.0,122150.0,1e-08]
[1759871672178,4.16669145,122160.0,122150.0,1e-08]
[1759871672367,4.18569145,122160.0,122150.0,1e-08]
[1759871673440,5.39331833,122120.0,122110.0,0.0004]
[1759871673646,5.91371362,122120.0,122110.0,0.00090335]
[1759871673853,6.39685258,122120.0,122110.0,0.00090335]
[1759871674069,6.49821451,122120.0,122110.0,0.00294332]
[1759871674488,6.34139771,122120.0,122110.0,0.00294332]
[1759871674593,6.42855771,122120.0,122110.0,0.00294332]
[1759871674800,6.11203771,122120.0,122110.0,0.00294332]
[1759871675059,6.43659771,122120.0,122110.0,0.00294332]
[1759871675267,6.50033113,122120.0,122110.0,0.00294332]
[1759871675469,6.58032793,122120.0,122110.0,0.00294332]
[1759871675673,6.57228793,122120.0,122110.0,0.00294332]
[1759871676013,6.58028793,122120.0,122110.0,0.00294332]
[1759871676514,6.57228793,122120.0,122110.0,0.00294332]
[1759871680208,7.06342689,122120.0,122110.0,0.00294332]
[1759871680428,7.07104147,122120.0,122110.0,0.00294332]
[1759871682836,7.51264147,122120.0,122110.0,0.00294332]
[1759871683904,7.54279337,122120.0,122110.0,0.00294332]
[1759871684127,7.56471729,122120.0,122110.0,0.00294332]
[1759871685228,6.35962308,122100.0,122090.0,0.0004]
[1759871685472,6.68622545,122100.0,122090.0,0.00055105]
[1759871685659,6.70176545,122100.0,122090.0,0.00055105]
[1759871685932,6.76414545,122100.0,122090.0,0.00157137]
[1759871686595,6.68414865,122100.0,122090.0,0.00157137]
[1759871686815,6.68414865,122100.0,122090.0,0.00457137]
[1759871687537,6.68514865,122100.0,122090.0,0.00457137]
[1759871688413,6.45378865,122100.0,122090.0,0.00457137]
[1759871688631,6.69318334,122100.0,122090.0,0.00457137]
[1759871688857,6.25155534,122100.0,122090.0,0.00457137]
[1759871689071,2.78841338,122100.0,122090.0,0.00457137]
[1759871689250,3.27155234,122100.0,122090.0,0.00457137]
[1759871689476,2.78841338,122100.0,122090.0,0.00457137]
[1759871690318,2.78041338,122100.0,122090.0,0.00457137]
[1759871690609,3.26355234,122100.0,122090.0,0.00457137]
[1759871691019,2.78041338,122100.0,122090.0,0.00457137]
[1759871691740,2.54905338,122100.0,122090.0,0.00457137]
[1759871691888,2.78045338,122100.0,122090.0,0.00457137]
[1759871692356,2.79802974,122100.0,122090.0,0.00457137]
[1759871693916,3.29256727,122100.0,122090.0,0.00457137]
[1759871694126,3.2791687,122100.0,122090.0,0.00457137]
[1759871695161,3.2955487,122100.0,122090.0,0.00457137]
[1759871695296,3.2791687,122100.0,122090.0,0.00457137]
[1759871695705,3.27919085,122100.0,122090.0,0.00457137]
[1759871697348,3.35918765,122100.0,122090.0,0.00457137]
[1759871698407,3.35920449,122100.0,122090.0,0.00457137]
[1759871699034,3.27920769,122100.0,122090.0,0.00457137]
[1759871699381,3.27820769,122100.0,122090.0,0.00457137]
[1759871699582,3.27820769,122100.0,122090.0,0.00157137]
[1759871699808,3.27220769,122100.0,122090.0,0.00157137]
[1759871701122,3.36332975,122100.0,122090.0,0.00157137]
[1759871701343,3.44332655,122100.0,122090.0,0.00157137]
[1759871701563,3.50305014,122100.0,122090.0,0.00157137]
[1759871701771,5.05335858,122090.0,122080.0,0.0004]
[1759871701981,6.40774509,122090.0,122080.0,0.00045028]
[1759871702184,6.54478189,122090.0,122080.0,0.00045028]
[1759871702455,6.5480629,122090.0,122080.0,0.00045028]
[1759871702649,0.16387605,122050.0,122040.0,0.06619503]
[1759871702794,0.66227501,122050.0,122040.0,0.06634613]
[1759871703028,0.68605501,122050.0,122040.0,0.06634613]
[1759871703424,0.20291605,122050.0,122040.0,0.0001511]
[1759871703631,0.91753501,122050.0,122040.0,0.0001511]
[1759871704234,0.92653501,122050.0,122040.0,0.0141511]
[1759871704910,0.92653501,122050.0,122040.0,0.0111511]
[1759871705585,0.92653501,122050.0,122040.0,0.0001511]
[1759871705795,0.92653501,122050.0,122040.0,0.0051511]
[1759871706656,0.91753501,122050.0,122040.0,0.0051511]
[1759871706885,0.68605501,122050.0,122040.0,0.0051511]
[1759871707073,0.91753501,122050.0,122040.0,0.0051511]
[1759871707286,0.68605501,122050.0,122040.0,0.0051511]
[1759871707505,0.91753501,122050.0,122040.0,0.0051511]
[1759871707722,0.91753501,122050.0,122040.0,0.00770315]
[1759871708130,0.68605501,122050.0,122040.0,0.00770315]
[1759871708344,0.91753501,122050.0,122040.0,0.00770315]
[1759871708929,0.68605501,122050.0,122040.0,0.00770315]
[1759871709130,0.91753501,122050.0,122040.0,0.00770315]
[1759871709340,0.92653501,122050.0,122040.0,0.00770315]
[1759871709773,0.91753501,122050.0,122040.0,0.00770315]
[1759871710420,0.17913605,122050.0,122040.0,0.02304315]
[1759871710632,0.18763384,122060.0,122040.0,0.20996384]
[1759871710865,0.38324784,122060.0,122050.0,0.18690726]
[1759871711086,0.41150537,122070.0,122050.0,0.70570045]
[1759871711308,0.17205724,122080.0,122060.0,0.67989116]
[1759871711546,0.17200425,122090.0,122070.0,0.68601773]
[1759871711768,1.02297201,122090.0,122080.0,0.02304]
[1759871711997,0.17200425,122090.0,122080.0,0.20220699]
[1759871712244,0.17084449,122100.0,122090.0,0.16381358]
[1759871712477,0.00085433,122100.0,122090.0,0.6951909]
[1759871712700,0.00085433,122100.0,122090.0,0.78826296]
[1759871712925,0.00085433,122100.0,122090.0,0.78831328]
[1759871713149,0.00085433,122100.0,122090.0,0.79755328]
[1759871713386,0.00085433,122100.0,122090.0,1.6614925]
[1759871713613,0.00085433,122100.0,122090.0,0.69389786]
[1759871713849,0.00085433,122100.0,122090.0,1.9834925]
[1759871714083,0.00085433,122100.0,122090.0,1.6614925]
[1759871714522,0.00085433,122100.0,122090.0,1.9876125]
[1759871715254,0.00085433,122100.0,122090.0,1.6704925]
[1759871715467,0.00085433,122100.0,122090.0,1.9895725]
[1759871715705,0.00085433,122100.0,122090.0,1.17870518]
[1759871715929,0.00085433,122100.0,122090.0,1.45439328]
[1759871716115,0.00085433,122100.0,122090.0,1.45739328]
[1759871716844,0.00085433,122100.0,122090.0,1.45743328]
[1759871717970,0.00085433,122100.0,122090.0,1.9504706]
[1759871718187,0.00085433,122100.0,122090.0,1.9906125]
[1759871718421,0.00085433,122100.0,122090.0,1.9876125]
[1759871718944,0.00085433,122100.0,122090.0,1.9806125]
[1759871719154,0.00085433,122100.0,122090.0,1.9856125]
[1759871719368,0.00085433,122100.0,122090.0,1.9806125]
[1759871719610,0.00085433,122100.0,122090.0,1.9786125]
[1759871719820,0.00085433,122100.0,122090.0,1.9886125]
[1759871720984,0.00085433,122100.0,122090.0,2.47240982]
[1759871721212,1e-08,122100.0,122090.0,2.49740981]
[1759871721422,1e-08,122100.0,122090.0,2.59740981]
[1759871721609,1e-08,122100.0,122090.0,2.51240981]
[1759871721853,1e-08,122100.0,122090.0,2.93840981]
[1759871722067,1e-08,122100.0,122090.0,2.27728981]
[1759871722274,1e-08,122100.0,122090.0,2.84132981]
[1759871722481,1e-08,122100.0,122090.0,2.94132981]
[1759871722693,1e-08,122100.0,122090.0,2.92832981]
[1759871722909,1e-08,122100.0,122090.0,2.96391748]
[1759871723093,1e-08,122100.0,122090.0,2.96991748]
[1759871723425,1e-08,122100.0,122090.0,4.42130944]
[1759871723629,1e-08,122100.0,122090.0,2.31187748]
[1759871723870,1e-08,122100.0,122090.0,2.96987748]
[1759871725400,1e-08,122100.0,122090.0,4.42126944]
[1759871726015,1e-08,122100.0,122090.0,4.76198944]
[1759871726581,0.06619503,122150.0,122140.0,0.53389842]
[1759871726775,0.06619503,122150.0,122140.0,1.90189512]
[1759871726977,0.06619503,122150.0,122140.0,1.97932512]
[1759871727244,0.06619503,122150.0,122140.0,1.66204512]
[1759871727462,0.06619503,122170.0,122160.0,0.16371971]
[1759871727680,0.06669817,122170.0,122160.0,1.02181909]
[1759871728152,0.00050314,122170.0,122160.0,1.52394641]
[1759871728999,0.00050314,122170.0,122160.0,1.10501589]
[1759871729198,0.00150314,122170.0,122160.0,1.10501589]
[1759871729425,0.00650314,122170.0,122160.0,1.10501589]
[1759871729640,0.00650314,122170.0,122160.0,0.87293589]
[1759871729839,0.00650314,122170.0,122160.0,1.19013589]
[1759871730274,0.00550314,122170.0,122160.0,1.19013589]
[1759871730684,0.00650314,122170.0,122160.0,1.19013589]
[1759871730931,0.00650314,122170.0,122160.0,0.87293589]
[1759871731129,0.17020945,122170.0,122160.0,0.15152206]
[1759871731335,0.17020945,122170.0,122160.0,0.30594177]
[1759871731541,0.17020945,122170.0,122160.0,0.60413177]
[1759871731953,0.17020945,122170.0,122160.0,0.61378177]
[1759871732663,0.00650314,122170.0,122160.0,0.61378177]
[1759871733067,0.01007197,122170.0,122160.0,0.61378177]
[1759871734523,0.17377828,122170.0,122160.0,0.29654177]
[1759871734746,0.17377828,122170.0,122160.0,0.52862177]
[1759871734963,0.01007197,122170.0,122160.0,0.52862177]
[1759871735427,0.17377828,122170.0,122160.0,0.52862177]
[1759871736064,0.01007197,122170.0,122160.0,0.52862177]
[1759871736469,0.17377828,122170.0,122160.0,0.52862177]
[1759871736878,0.01007197,122170.0,122160.0,0.52862177]
[1759871737620,0.17377828,122170.0,122160.0,0.29654177]
[1759871737827,0.17377828,122170.0,122160.0,0.52854177]
[1759871738218,0.01007197,122170.0,122160.0,0.52854177]
[1759871738673,0.17377828,122170.0,122160.0,0.52854177]
[1759871740274,0.17377828,122170.0,122160.0,0.52850177]
[1759871741634,0.01007197,122170.0,122160.0,0.52850177]
[1759871742913,0.17377828,122170.0,122160.0,0.52846177]
[1759871746143,0.17377828,122170.0,122160.0,0.29654177]
[1759871746287,0.17377828,122170.0,122160.0,0.61354177]
[1759871748278,0.19027828,122170.0,122160.0,0.08312206]
[1759871748494,0.22402828,122170.0,122160.0,0.31496206]
[1759871748846,0.19027828,122170.0,122160.0,0.32999206]
[1759871751071,0.21419828,122170.0,122160.0,0.32995206]
[1759871751270,0.22948913,122170.0,122160.0,0.49367177]
[1759871751477,0.18906913,122170.0,122160.0,0.52791177]
[1759871751692,0.17377828,122170.0,122160.0,0.52791177]
[1759871753364,0.18907723,122170.0,122160.0,0.52791177]
[1759871756924,0.18907723,122170.0,122160.0,1.02062121]
[1759871757485,0.18907723,122170.0,122160.0,0.78882121]
[1759871757695,0.18907723,122170.0,122160.0,1.02054121]
[1759871758284,0.01007197,122170.0,122160.0,1.50357065]
[1759871759660,0.01007197,122170.0,122160.0,0.53751177]
[1759871759873,0.01007197,122170.0,122160.0,1.02054121]
[1759871760515,0.01007197,122170.0,122160.0,1.01086121]
[1759871760755,0.01007197,122170.0,122160.0,0.29611177]
[1759871760967,0.01007197,122170.0,122160.0,1.09598121]
[1759871762235,0.01007197,122170.0,122160.0,1.10566121]
[1759871763185,0.01007197,122170.0,122160.0,1.59832065]
[1759871763410,0.01007197,122170.0,122160.0,2.12120199]
[1759871763617,0.01007197,122170.0,122160.0,1.63817255]
[1759871766986,7.197e-05,122170.0,122160.0,1.63817255]
[1759871771729,7.197e-05,122170.0,122160.0,1.97817255]
[1759871771944,7.197e-05,122170.0,122160.0,2.96120199]
[1759871773034,7.197e-05,122170.0,122160.0,3.03473701]
[1759871773246,7.197e-05,122170.0,122160.0,2.55097227]
[1759871774456,7.197e-05,122170.0,122160.0,2.55297227]
[1759871774657,7.197e-05,122170.0,122160.0,2.57897226]
[1759871774891,7.197e-05,122170.0,122160.0,2.26209226]
[1759871775022,7.197e-05,122170.0,122160.0,2.91945226]
[1759871776293,7.197e-05,122170.0,122160.0,2.26209226]
[1759871776481,7.197e-05,122170.0,122160.0,2.49377226]
[1759871776725,7.197e-05,122170.0,122160.0,2.91941226]
[1759871777008,7.197e-05,122170.0,122160.0,2.83429226]
[1759871777248,7.197e-05,122170.0,122160.0,2.91941226]
[1759871778546,7.197e-05,122170.0,122160.0,3.18311226]
[1759871779487,7.197e-05,122170.0,122160.0,3.18011226]
[1759871779840,7.197e-05,122170.0,122160.0,3.18311226]
[1759871780651,7.197e-05,122170.0,122160.0,3.09799226]
[1759871780865,7.197e-05,122170.0,122160.0,2.52879226]
[1759871781016,7.197e-05,122170.0,122160.0,3.18607226]
[1759871781960,7.197e-05,122170.0,122160.0,2.26509226]
[1759871782183,1.799e-05,122170.0,122160.0,0.97044679]
[1759871782382,1.799e-05,122170.0,122160.0,0.80211177]
[1759871782587,1.799e-05,122170.0,122160.0,1.11899177]
[1759871783023,1.799e-05,122170.0,122160.0,1.60165356]
[1759871783204,1.799e-05,122170.0,122160.0,1.59865356]
[1759871783344,1.799e-05,122170.0,122160.0,1.59965356]
[1759871783760,1.799e-05,122170.0,122160.0,1.28277356]
[1759871783981,1.799e-05,122170.0,122160.0,1.59665356]
[1759871784186,1.799e-05,122170.0,122160.0,1.27977356]
[1759871784403,1.799e-05,122170.0,122160.0,1.59761356]
[1759871785030,1.799e-05,122170.0,122160.0,0.79811177]
[1759871785247,1.799e-05,122170.0,122160.0,1.02983177]
[1759871785453,1.799e-05,122170.0,122160.0,1.11495177]
[1759871785881,1.799e-05,122170.0,122160.0,1.59761356]
[1759871786328,1.799e-05,122170.0,122160.0,1.51249356]
[1759871786535,1.799e-05,122170.0,122160.0,1.59761356]
[1759871787047,1.799e-05,122170.0,122160.0,1.28077356]
[1759871787252,1.799e-05,122170.0,122160.0,1.59761356]
[1759871791276,1.799e-05,122170.0,122160.0,1.59757356]
[1759871791931,1.799e-05,122170.0,122160.0,1.59657356]
[1759871792140,0.1637243,122170.0,122160.0,1.51045356]
[1759871792350,0.1637243,122170.0,122160.0,1.59557356]
[1759871792529,1.799e-05,122170.0,122160.0,1.59557356]
[1759871796947,0.1637243,122170.0,122160.0,0.79611177]
[1759871797149,0.1637243,122170.0,122160.0,1.11283177]
[1759871801017,1.799e-05,122170.0,122160.0,1.60476356]
[1759871801994,1.799e-05,122170.0,122160.0,1.61425356]
[1759871802826,1.799e-05,122170.0,122160.0,2.09691535]
[1759871803136,1.799e-05,122170.0,122160.0,1.61425356]
[1759871804567,1.799e-05,122170.0,122160.0,2.09691535]
[1759871809138,1.799e-05,122170.0,122160.0,2.13675725]
[1759871809361,1.799e-05,122170.0,122160.0,2.47675725]
[1759871810706,1.799e-05,122170.0,122160.0,2.16003725]
[1759871810920,1.799e-05,122170.0,122160.0,2.47679725]
[1759871812235,0.16368032,122190.0,122180.0,0.16369291]
[1759871812586,0.16383115,122190.0,122180.0,0.52844497]
[1759871812783,0.00015083,122190.0,122180.0,0.52844497]
[1759871813401,0.00215083,122190.0,122180.0,0.52844497]
[1759871814051,0.16583034,122190.0,122180.0,0.52844497]
[1759871814263,0.00215083,122190.0,122180.0,0.52844497]
[1759871814626,0.16933984,122200.0,122180.0,0.52844497]
[1759871814825,0.16366612,122200.0,122190.0,0.42804951]